Workbook

Sheet 例題29a 液相PFR
A1: 微分方程式数 | B1: 2 | E1: FA0= | F1: 146.7 | G1: kmol/h
A2: V= | B2: xA= | C2: T= | E2: F= | F2: 163 | G2: kmol/h
A3: 3 | B3: 0.706841096 | C3: 356.3316329 | E3: cA0= | F3: 9.3 | G3: kmol/m3
B4: xA'= | C4: T'= | E4: Cp= | F4: 166.7 | G4: kJ/kmol-K
A5: 微分方程式→ | B5: =F9/F1 -> 0.02910260905 | C5: =(-F9)*F6/(F2*F4) -> 1.084146384 | E5: T0= | F5: 330 | G5: K
E6: ΔrH= | F6: -6900 | G6: kJ/kmol
A7: 積分区間V=[a, | B7: 0 | E7: k= | F7: =31.1*EXP((65700/8.31)*(C3-360)/(360*C3)) -> 24.80681443 | G7: /h
A8: b] | B8: 3 | E8: Kc= | F8: =3.03*EXP((-6900/8.31)*(1/333-1/C3)) -> 2.573577763
A9: 積分刻み幅ΔV | B9: 0.1 | E9: -rA= | F9: =F7*F3*(1-(1+1/F8)*B3) -> 4.269352748 | G9: kmol/m3-h
A10: 計算結果 | R10: n-butane | S10: isobutane
A11: V[m3] | B11: xA | C11: T[K] | K11: cA[kmol/m3] | L11: cB | M11: T | N11: k | O11: Kc | P11: -rA[kmol/h m3] | Q11: F[kmol/h] | R11: FA[kmol/h] | S11: FB[kmol/h] | T11: (FA0/-ra)
A12: 0 | B12: 0 | C12: 330 | D12: ←初期値 | K12: =$F$3*(1-B12) -> 9.3 | L12: =$F$3-K12 -> 0 | M12: =$F$5-($F$6*B12*$F$1/($F$2*$F$4)) -> 330 | N12: =31.1*EXP(7906*(M12-360)/(360*M12)) -> 4.223833689 | O12: =3.03*EXP((-6900/8.31)*(1/333-1/M12)) -> 3.099468088 | P12: =N12*(K12-L12/O12) -> 39.28165331 | Q12: 163 | R12: =F1 -> 146.7 | S12: =$R$12*B12 -> 0 | T12: =$F$1/P12 -> 3.734567862
A13: 0.1 | B13: 0.02727506864 | C13: 331.0160658 | K13: 9.046341862 | L13: 0.2536581384 | M13: 331.0160658 | N13: =31.1*EXP(7906*(M13-360)/(360*M13)) -> 4.546155007 | O13: =3.03*EXP((-6900/8.31)*(1/333-1/M13)) -> 3.07562195 | P13: =N13*(K13-L13/O13) -> 40.7511338 | Q13: 163 | R13: =$R$12*(1-B13) -> 142.6987474 | S13: 4.001252569 | T13: 3.599899839
A14: 0.2 | B14: 0.05556049097 | C14: 332.0697699 | K14: 8.783287434 | L14: 0.516712566 | M14: 332.0697699 | N14: 4.904088436 | O14: 3.051238564 | P14: 42.24353456 | Q14: 163 | R14: 138.549276 | S14: 8.150724025 | T14: 3.472720773
A15: 0.3 | B15: 0.08486620652 | C15: 333.1614826 | K15: 8.510744279 | L15: 0.7892557207 | M15: 333.1614826 | N15: 5.30200342 | O15: 3.026340221 | P15: 43.74125698 | Q15: 163 | R15: 134.2501275 | S15: 12.4498725 | T15: 3.353813085
A16: 0.4 | B16: 0.1151881614 | C16: 334.2910527 | K16: 8.228750099 | L16: 1.071249901 | M16: 334.2910527 | N16: 5.744651574 | O16: 3.000961362 | P16: 45.22064021 | Q16: 163 | R16: 129.8018967 | S16: 16.89810328 | T16: 3.244093832
A17: 0.5 | B17: 0.146503758 | C17: 335.4576385 | K17: 7.93751505 | L17: 1.36248495 | M17: 335.4576385 | N17: 6.237095167 | O17: 2.975151339 | P17: 46.65072885 | Q17: 163 | R17: 125.2078987 | S17: 21.4921013 | T17: 3.144645403
A18: 0.6 | B18: 0.178766468 | C18: 336.6595067 | K18: 7.637471847 | L18: 1.662528153 | M18: 336.6595067 | N18: 6.784571795 | O18: 2.948977464 | P18: 47.99207686 | Q18: 163 | R18: 120.4749591 | S18: 26.22504086 | T18: 3.056754565
A19: 0.7 | B19: 0.2118996973 | C19: 337.893804 | K19: 7.329332815 | L19: 1.970667185 | M19: 337.893804 | N19: 7.392271165 | O19: 2.922528219 | P19: 49.19579098 | Q19: 163 | R19: 115.6143144 | S19: 31.08568559 | T19: 2.981962422
A20: 0.8 | B20: 0.2457901665 | C20: 339.1563103 | K20: 7.014151451 | L20: 2.285848549 | M20: 339.1563103 | N20: 8.064997764 | O20: 2.895916349 | P20: 50.2031296 | Q20: 163 | R20: 110.6425826 | S20: 36.05741743 | T20: 2.922128584
A21: 0.9 | B21: 0.2802813295 | C21: 340.4411941 | K21: 6.693383635 | L21: 2.606616365 | M21: 340.4411941 | N21: 8.806696143 | O21: 2.869281452 | P21: 50.94609862 | Q21: 163 | R21: 105.582729 | S21: 41.11727104 | T21: 2.879513917
A22: 1 | B22: 0.3151676904 | C22: 341.7408 | K22: 6.368940479 | L22: 2.931059521 | M22: 341.7408 | N22: 9.619827708 | O22: 2.842791484 | P22: 51.3495889 | Q22: 163 | R22: 100.4648998 | S22: 46.23510018 | T22: 2.856887526
A23: 1.1 | B23: 0.3501912637 | C23: 343.0455174 | K23: 6.043221248 | L23: 3.256778752 | M23: 343.0455174 | N23: 10.50461417 | O23: 2.816642438 | P23: 51.3356134 | Q23: 163 | R23: 95.32694162 | S23: 51.37305838 | T23: 2.857665279
A24: 1.2 | B24: 0.3850417579 | C24: 344.3437871 | K24: 5.719111652 | L24: 3.580888348 | M24: 344.3437871 | N24: 11.45820648 | O24: 2.791055366 | P24: 50.83002979 | Q24: 163 | R24: 90.21437412 | S24: 56.48562588 | T24: 2.8860892
A25: 1.3 | B25: 0.4193621866 | C25: 345.6223106 | K25: 5.399931665 | L25: 3.900068335 | M25: 345.6223106 | N25: 12.47389705 | O25: 2.766269979 | P25: 49.77167577 | Q25: 163 | R25: 85.17956723 | S25: 61.52043277 | T25: 2.947459529
A26: 1.4 | B26: 0.4527613145 | C26: 346.8665133 | K26: 5.089319775 | L26: 4.210680225 | M26: 346.8665133 | N26: 13.54055435 | O26: 2.742534406 | P26: 48.12306639 | Q26: 163 | R26: 80.27991517 | S26: 66.42008483 | T26: 3.048434171
A27: 1.5 | B27: 0.4848334375 | C27: 348.0612816 | K27: 4.791049031 | L27: 4.508950969 | M27: 348.0612816 | N27: 14.64249699 | O27: 2.720091314 | P27: 45.88083108 | Q27: 163 | R27: 75.57493472 | S27: 71.12506528 | T27: 3.197413747
A28: 1.6 | B28: 0.5151844563 | C28: 349.1919345 | K28: 4.508784556 | L28: 4.791215444 | M28: 349.1919345 | N28: 15.76000272 | O28: 2.699161533 | P28: 43.08326254 | Q28: 163 | R28: 71.12244026 | S28: 75.57755974 | T28: 3.405034609
A29: 1.7 | B29: 0.543461316 | C29: 350.2453196 | K29: 4.245809761 | L29: 5.054190239 | M29: 350.2453196 | N29: 16.87054222 | O29: 2.679927269 | P29: 39.81223078 | Q29: 163 | R29: 66.97422494 | S29: 79.72577506 | T29: 3.684797288
A30: 1.8 | B30: 0.5693802807 | C30: 351.2108671 | K30: 4.004763389 | L30: 5.295236611 | M30: 351.2108671 | N30: 17.95064327 | O30: 2.662517623 | P30: 36.18769427 | Q30: 163 | R30: 63.17191282 | S30: 83.52808718 | T30: 4.053864248
A31: 1.9 | B31: 0.5927489416 | C31: 352.0814093 | K31: 3.787434843 | L31: 5.512565157 | M31: 352.0814093 | N31: 18.97808659 | O31: 2.646999092 | P31: 32.35504209 | Q31: 163 | R31: 59.74373027 | S31: 86.95626973 | T31: 4.534069206
A32: 2 | B32: 0.6134778156 | C32: 352.8536127 | K32: 3.594656315 | L32: 5.705343685 | M32: 352.8536127 | N32: 19.93399874 | O32: 2.633372863 | P32: 28.467796 | Q32: 163 | R32: 56.70280446 | S32: 89.99719554 | T32: 5.153191346
A33: 2.1 | B33: 0.6315797015 | C33: 353.5279541 | K33: =$F$3*(1-B33) -> 3.426308776 | L33: =$F$3-K33 -> 5.873691224 | M33: 353.5279541 | N33: 20.80441363 | O33: 2.62157923 | P33: =N33*(K33-L33/O33) -> 24.66971536 | Q33: 164 | R33: =$R$12*(1-B33) -> 54.04725779 | S33: =$R$12*B33 -> 92.65274221 | T33: =$F$1/P33 -> 5.946562328
A34: 2.2 | B34: 0.6471578068 | C34: 354.1082782 | K34: 3.281432397 | L34: 6.018567603 | M34: 354.1082782 | N34: 21.58102854 | O34: 2.611507913 | P34: 21.08033328 | Q34: 165 | R34: 51.76194975 | S34: 94.93805025 | T34: 6.959093011
A35: 2.3 | B35: 0.6603859718 | C35: 354.6010611 | K35: 3.158410462 | L35: 6.141589538 | M35: 354.6010611 | N35: 22.2611136 | O35: 2.603011971 | P35: 17.78649413 | Q35: 166 | R35: 49.82137794 | S35: 96.87862206 | T35: 8.247831129
A36: 2.4 | B36: 0.671485366 | C36: 355.0145418 | K36: 3.055186096 | L36: 6.244813904 | M36: 355.0145418 | N36: 22.84674414 | O36: 2.595922705 | P36: 14.84037951 | Q36: 167 | R36: 48.1930968 | S36: 98.5069032 | T36: 9.885191942
A37: 2.5 | B37: 0.6807017282 | C37: 355.3578748 | K37: 2.969473928 | L37: 6.330526072 | M37: 355.3578748 | N37: 23.34363966 | O37: 2.590063312 | P37: 12.26276672 | Q37: 168 | R37: 46.84105647 | S37: 99.85894353 | T37: 11.96304254
A38: 2.6 | B38: 0.6882860193 | C38: 355.640409 | K38: 2.89894002 | L38: 6.40105998 | M38: 355.640409 | N38: 23.75989803 | O38: 2.585259905 | P38: 10.04941195 | Q38: 169 | R38: 45.72844096 | S38: 100.971559 | T38: 14.59786908
A39: 2.7 | B39: 0.6944798902 | C39: 355.8711465 | K39: 2.841337022 | L39: 6.458662978 | M39: 355.8711465 | N39: 24.10484257 | O39: 2.581349354 | P39: 8.178480541 | Q39: 170 | R39: 44.81980011 | S39: 101.8801999 | T39: 17.93731724
A40: 2.8 | B40: 0.6995061189 | C40: 356.0583863 | K40: 2.794593095 | L40: 6.505406905 | M40: 356.0583863 | N40: 24.3881022 | O40: 2.57818407 | P40: 6.617505757 | Q40: 171 | R40: 44.08245236 | S40: 102.6175476 | T40: 22.16847335
A41: 2.9 | B41: 0.7035633797 | C41: 356.2095296 | K41: 2.756860568 | L41: 6.543139432 | M41: 356.2095296 | N41: 24.61895994 | O41: 2.575634252 | P41: 5.329051471 | Q41: 172 | R41: 43.48725219 | S41: 103.2127478 | T41: 27.52835112
A42: 3 | B42: 0.706824346 | C42: 356.3310089 | K42: 2.726533582 | L42: 6.573466418 | M42: 356.3310089 | N42: 24.80594796 | O42: 2.573588265 | P42: 4.27482776 | Q42: 173 | R42: 43.00886843 | S42: 103.6911316 | T42: 34.31717212
K45: COCO <COCO_28a_AdiabaticPFR.fsd>
K46: V | L46: =11*(3.14/4)*0.7^2 -> 4.23115 | M46: m3
L48: V | M48: temperature | O48: FA | P48: xA | R48: V | S48: rxn1 rate profile
K49: section | L49: m3 | M49: ℃ | N49: K | O49: kmol/h | S49: kmol/m3-h
K50: 0 | L50: =$L$46*K50/100 -> 0 | M50: 56.85 | N50: =M50+273.15 -> 330 | O50: 146.7 | P50: =($O$50-O50)/$O$50 -> 0 | Q50: 0 | R50: =$L$46*Q50/100 -> 0 | S50: 34.4
K51: 20 | L51: 0.84623 | M51: 66.82 | N51: =M51+273.15 -> 339.97 | O51: 112.5 | P51: 0.2331288344 | Q51: 10 | R51: 0.423115 | S51: 40.46
K52: 40 | L52: 1.69246 | M52: 77.8 | N52: 350.95 | O52: 73.3 | P52: 0.5003408316 | Q52: 20 | R52: 0.84623 | S52: 45.99
K53: 60 | L53: 2.53869 | M53: 84.17 | N53: 357.32 | O53: 49.5 | P53: 0.6625766871 | Q53: 30 | R53: 1.269345 | S53: 47.7
K54: 80 | L54: 3.38492 | M54: 85.86 | N54: 359.01 | O54: 43 | P54: 0.7068847989 | Q54: 40 | R54: 1.69246 | S54: 41.36
K55: 100 | L55: 4.23115 | M55: 86.16 | N55: 359.31 | O55: 41.86 | P55: 0.7146557601 | Q55: 50 | R55: 2.115575 | S55: 28.02
Q56: 60 | R56: 2.53869 | S56: 15.05
Q57: 70 | R57: 2.961805 | S57: 6.94
Q58: 80 | R58: 3.38492 | S58: 2.96
Q59: 90 | R59: 3.808035 | S59: 1.21
Q60: 100 | R60: 4.23115 | S60: 0.49
